[Event "Titled Tuesday Blitz January 10 Early 2023"]
[White "Kovacevic, Radmila"]
[Black "Avazkhonov, Alikhon"]
[WhiteFideId "933171"]
[BlackFideId "14208504"]
[WhiteElo "2106"]
[BlackElo "1538"]
[Result "0-1"]
[Round "04"]
[TimeControl "180+2"]
[Date "2023.01.10"]
[WhiteClock "0:01:54"]
[BlackClock "0:01:46"]

1. e4 {[%clk 0:03:00]}  c5 {[%clk 0:02:59]} 2. Be2 {[%clk 0:02:56]}  Nc6 {[%clk 0:02:57]} 3. f4 {[%clk 0:02:57]}  d6 {[%clk 0:02:55]} 4. Nf3 {[%clk 0:02:57]}  g6 {[%clk 0:02:56]} 5. O-O {[%clk 0:02:56]}  Bg7 {[%clk 0:02:56]} 6. c3 {[%clk 0:02:57]}  e6 {[%clk 0:02:55]} 7. d3 {[%clk 0:02:55]}  Nge7 {[%clk 0:02:55]} 8. Be3 {[%clk 0:02:55]}  O-O {[%clk 0:02:56]} 9. Qe1 {[%clk 0:02:55]}  b5 {[%clk 0:02:56]} 10. a3 {[%clk 0:02:48]}  Rb8 {[%clk 0:02:55]} 11. Nbd2 {[%clk 0:02:45]}  a5 {[%clk 0:02:54]} 12. Rc1 {[%clk 0:02:41]}  b4 {[%clk 0:02:50]} 13. axb4 {[%clk 0:02:39]}  axb4 {[%clk 0:02:50]} 14. Qh4 {[%clk 0:02:39]}  Ba6 {[%clk 0:02:41]} 15. Ng5 {[%clk 0:02:37]}  h6 {[%clk 0:02:40]} 16. Nh3 {[%clk 0:02:33]}  f5 {[%clk 0:02:05]} 17. g4 {[%clk 0:02:24]}  bxc3 {[%clk 0:01:58]} 18. bxc3 {[%clk 0:02:22]}  fxe4 {[%clk 0:01:58]} 19. Nxe4 {[%clk 0:02:21]}  Nd5 {[%clk 0:01:59]} 20. Bd2 {[%clk 0:02:14]}  Qxh4 {[%clk 0:01:55]} 21. Kg2 {[%clk 0:02:05]}  Rb2 {[%clk 0:01:53]} 22. Rf2 {[%clk 0:01:55]}  Rxd2 {[%clk 0:01:46]} 23. Nxd2 {[%clk 0:01:54]}  Ne3+ {[%clk 0:01:46]} 0-1


[Site "https://www.chess.com"]

[Event "Titled Tuesday Blitz January 10 Early 2023"]
[White "Bon, Michael"]
[Black "Kho, Darrell"]
[WhiteFideId "620696"]
[BlackFideId "1019317"]
[WhiteElo "2394"]
[BlackElo "2075"]
[Result "0-1"]
[Round "04"]
[TimeControl "180+2"]
[Date "2023.01.10"]
[WhiteClock "0:01:57"]
[BlackClock "0:00:30"]

1. e4 {[%clk 0:03:00]}  e6 {[%clk 0:02:56]} 2. d4 {[%clk 0:03:00]}  d5 {[%clk 0:02:56]} 3. e5 {[%clk 0:03:01]}  c5 {[%clk 0:02:56]} 4. c3 {[%clk 0:03:02]}  Qb6 {[%clk 0:02:55]} 5. Nf3 {[%clk 0:03:02]}  Bd7 {[%clk 0:02:53]} 6. Bd3 {[%clk 0:03:01]}  Bb5 {[%clk 0:02:53]} 7. dxc5 {[%clk 0:03:01]}  Bxc5 {[%clk 0:02:50]} 8. b4 {[%clk 0:03:01]}  Be7 {[%clk 0:01:48]} 9. Be3 {[%clk 0:02:56]}  Qa6 {[%clk 0:01:47]} 10. Bc2 {[%clk 0:02:56]}  Nh6 {[%clk 0:01:40]} 11. a4 {[%clk 0:02:56]}  Bc4 {[%clk 0:01:40]} 12. Bxh6 {[%clk 0:02:47]}  gxh6 {[%clk 0:01:40]} 13. Qd2 {[%clk 0:02:47]}  Nd7 {[%clk 0:01:13]} 14. Na3 {[%clk 0:02:36]}  Rg8 {[%clk 0:01:01]} 15. b5 {[%clk 0:02:31]}  Qa5 {[%clk 0:00:52]} 16. Nxc4 {[%clk 0:02:30]}  dxc4 {[%clk 0:00:52]} 17. O-O {[%clk 0:02:30]}  O-O-O {[%clk 0:00:45]} 18. Qxh6 {[%clk 0:02:24]}  Qxc3 {[%clk 0:00:43]} 19. Rac1 {[%clk 0:02:24]}  Qxf3 {[%clk 0:00:42]} 20. g3 {[%clk 0:02:20]}  Bg5 {[%clk 0:00:39]} 21. Qxh7 {[%clk 0:01:56]}  Bxc1 {[%clk 0:00:38]} 22. Rxc1 {[%clk 0:01:57]}  Rh8 {[%clk 0:00:30]} 0-1


[Site "https://www.chess.com"]

[Event "Titled Tuesday Blitz January 10 Early 2023"]
[White "Tuleyeva-Aketayeva, Dana"]
[Black "Osinovsky, Stepan"]
[WhiteFideId "13701932"]
[BlackFideId "4157354"]
[WhiteElo "2130"]
[BlackElo "2241"]
[Result "0-1"]
[Round "04"]
[TimeControl "180+2"]
[Date "2023.01.10"]
[WhiteClock "0:00:02"]
[BlackClock "0:00:20"]

1. d4 {[%clk 0:02:56]}  Nf6 {[%clk 0:02:59]} 2. Nf3 {[%clk 0:02:56]}  g6 {[%clk 0:03:00]} 3. g3 {[%clk 0:02:55]}  Bg7 {[%clk 0:03:00]} 4. Bg2 {[%clk 0:02:56]}  O-O {[%clk 0:03:01]} 5. O-O {[%clk 0:02:56]}  d6 {[%clk 0:03:02]} 6. c4 {[%clk 0:02:55]}  Nbd7 {[%clk 0:03:03]} 7. Nc3 {[%clk 0:02:54]}  e5 {[%clk 0:03:03]} 8. dxe5 {[%clk 0:02:54]}  dxe5 {[%clk 0:03:04]} 9. Bg5 {[%clk 0:02:49]}  h6 {[%clk 0:03:03]} 10. Bxf6 {[%clk 0:02:49]}  Bxf6 {[%clk 0:02:57]} 11. Qc1 {[%clk 0:02:44]}  Bg7 {[%clk 0:02:55]} 12. Rd1 {[%clk 0:02:44]}  c6 {[%clk 0:02:51]} 13. Ne4 {[%clk 0:02:33]}  Qe7 {[%clk 0:02:51]} 14. Nd6 {[%clk 0:02:32]}  e4 {[%clk 0:02:39]} 15. Nxc8 {[%clk 0:02:02]}  Raxc8 {[%clk 0:02:37]} 16. Bh3 {[%clk 0:01:56]}  f5 {[%clk 0:02:27]} 17. Nh4 {[%clk 0:01:56]}  Ne5 {[%clk 0:02:08]} 18. Qc2 {[%clk 0:01:43]}  Rcd8 {[%clk 0:01:37]} 19. Qa4 {[%clk 0:01:29]}  a6 {[%clk 0:01:25]} 20. a3 {[%clk 0:01:04]}  f4 {[%clk 0:01:05]} 21. Rxd8 {[%clk 0:00:54]}  Rxd8 {[%clk 0:01:06]} 22. Rd1 {[%clk 0:00:38]}  e3 {[%clk 0:01:00]} 23. fxe3 {[%clk 0:00:18]}  fxg3 {[%clk 0:00:56]} 24. hxg3 {[%clk 0:00:18]}  Rxd1+ {[%clk 0:00:50]} 25. Qxd1 {[%clk 0:00:18]}  Qg5 {[%clk 0:00:51]} 26. Kh2 {[%clk 0:00:15]}  Qxe3 {[%clk 0:00:41]} 27. Qd8+ {[%clk 0:00:15]}  Kh7 {[%clk 0:00:40]} 28. Qd1 {[%clk 0:00:05]}  Nxc4 {[%clk 0:00:33]} 29. Qc2 {[%clk 0:00:05]}  Ne5 {[%clk 0:00:30]} 30. Bg2 {[%clk 0:00:03]}  h5 {[%clk 0:00:23]} 31. Be4 {[%clk 0:00:02]}  Qf2+ {[%clk 0:00:22]} 32. Kh3 {[%clk 0:00:02]}  Qf1+ {[%clk 0:00:22]} 33. Bg2 {[%clk 0:00:02]}  Qg1 {[%clk 0:00:20]} 0-1


[Site "https://www.chess.com"]

[Event "Titled Tuesday Blitz January 10 Early 2023"]
[White "Legenia, Artem"]
[Black "ritanovikova"]
[WhiteFideId "14136945"]
[WhiteElo "2092"]
[BlackElo "2112"]
[Result "1-0"]
[Round "04"]
[TimeControl "180+2"]
[Date "2023.01.10"]
[WhiteClock "0:00:42"]
[BlackClock "0:00:01"]

1. d4 {[%clk 0:02:58]}  Nf6 {[%clk 0:02:59]} 2. Nf3 {[%clk 0:02:54]}  e6 {[%clk 0:02:58]} 3. Nc3 {[%clk 0:02:55]}  d5 {[%clk 0:02:56]} 4. Bg5 {[%clk 0:02:54]}  Be7 {[%clk 0:02:56]} 5. Bxf6 {[%clk 0:02:51]}  Bxf6 {[%clk 0:02:56]} 6. e4 {[%clk 0:02:52]}  dxe4 {[%clk 0:02:53]} 7. Nxe4 {[%clk 0:02:52]}  Nc6 {[%clk 0:02:53]} 8. Bb5 {[%clk 0:02:50]}  Bd7 {[%clk 0:02:52]} 9. Qd2 {[%clk 0:02:35]}  a6 {[%clk 0:02:44]} 10. Nxf6+ {[%clk 0:02:26]}  Qxf6 {[%clk 0:02:43]} 11. Bc4 {[%clk 0:02:19]}  e5 {[%clk 0:02:29]} 12. O-O-O {[%clk 0:02:18]}  O-O-O {[%clk 0:01:49]} 13. Qg5 {[%clk 0:02:16]}  Nxd4 {[%clk 0:01:11]} 14. Qxf6 {[%clk 0:01:42]}  gxf6 {[%clk 0:01:10]} 15. Nxd4 {[%clk 0:01:42]}  exd4 {[%clk 0:01:08]} 16. Rxd4 {[%clk 0:01:42]}  Be6 {[%clk 0:01:04]} 17. Rxd8+ {[%clk 0:01:37]}  Rxd8 {[%clk 0:01:02]} 18. Bd3 {[%clk 0:01:37]}  h6 {[%clk 0:01:01]} 19. Re1 {[%clk 0:01:33]}  Rg8 {[%clk 0:00:58]} 20. g3 {[%clk 0:01:30]}  h5 {[%clk 0:00:53]} 21. Re4 {[%clk 0:01:22]}  Bf5 {[%clk 0:00:41]} 22. Rf4 {[%clk 0:01:22]}  Bxd3 {[%clk 0:00:40]} 23. cxd3 {[%clk 0:01:23]}  Rg6 {[%clk 0:00:39]} 24. h4 {[%clk 0:01:20]}  Kd7 {[%clk 0:00:34]} 25. Rf5 {[%clk 0:01:20]}  Rh6 {[%clk 0:00:33]} 26. d4 {[%clk 0:01:14]}  Ke6 {[%clk 0:00:32]} 27. Rc5 {[%clk 0:01:14]}  c6 {[%clk 0:00:30]} 28. Kd2 {[%clk 0:01:11]}  f5 {[%clk 0:00:29]} 29. Re5+ {[%clk 0:01:10]}  Kf6 {[%clk 0:00:28]} 30. Re8 {[%clk 0:01:06]}  Rg6 {[%clk 0:00:20]} 31. Rh8 {[%clk 0:01:05]}  Rg4 {[%clk 0:00:19]} 32. Ke3 {[%clk 0:01:03]}  Re4+ {[%clk 0:00:19]} 33. Kd3 {[%clk 0:01:02]}  c5 {[%clk 0:00:17]} 34. dxc5 {[%clk 0:01:02]}  Rb4 {[%clk 0:00:17]} 35. b3 {[%clk 0:01:01]}  Ke5 {[%clk 0:00:11]} 36. Rxh5 {[%clk 0:01:00]}  Rb5 {[%clk 0:00:09]} 37. g4 {[%clk 0:00:57]}  Kf4 {[%clk 0:00:07]} 38. Rxf5+ {[%clk 0:00:50]}  Kxg4 {[%clk 0:00:07]} 39. Rxf7 {[%clk 0:00:48]}  Kxh4 {[%clk 0:00:07]} 40. Kc4 {[%clk 0:00:48]}  Ra5 {[%clk 0:00:02]} 41. a4 {[%clk 0:00:43]}  b5+ {[%clk 0:00:01]} 42. cxb6 {[%clk 0:00:42]} 1-0


[Site "https://www.chess.com"]

[Event "Titled Tuesday Blitz January 10 Early 2023"]
[White "Yaniuk, Volodymyr"]
[Black "Vargas, Mauricio"]
[WhiteFideId "14133083"]
[BlackFideId "4404572"]
[WhiteElo "2223"]
[BlackElo "2035"]
[Result "1-0"]
[Round "04"]
[TimeControl "180+2"]
[Date "2023.01.10"]
[WhiteClock "0:02:26"]
[BlackClock "0:01:46"]

1. d4 {[%clk 0:03:00]}  d5 {[%clk 0:02:58]} 2. c4 {[%clk 0:02:59]}  c6 {[%clk 0:02:58]} 3. Nf3 {[%clk 0:02:58]}  e6 {[%clk 0:02:58]} 4. e3 {[%clk 0:02:58]}  Nf6 {[%clk 0:02:57]} 5. b3 {[%clk 0:02:58]}  Nbd7 {[%clk 0:02:57]} 6. Bb2 {[%clk 0:02:58]}  Bd6 {[%clk 0:02:56]} 7. Bd3 {[%clk 0:02:58]}  Kf8 {[%clk 0:02:54]} 8. Nbd2 {[%clk 0:02:58]}  b6 {[%clk 0:02:49]} 9. O-O {[%clk 0:02:56]}  Bb7 {[%clk 0:02:49]} 10. e4 {[%clk 0:02:57]}  dxe4 {[%clk 0:02:45]} 11. Nxe4 {[%clk 0:02:58]}  Nxe4 {[%clk 0:02:44]} 12. Bxe4 {[%clk 0:02:59]}  Nf6 {[%clk 0:02:44]} 13. Bc2 {[%clk 0:02:58]}  h6 {[%clk 0:02:42]} 14. Qe2 {[%clk 0:02:57]}  Bc7 {[%clk 0:02:39]} 15. Rad1 {[%clk 0:02:55]}  Rg8 {[%clk 0:02:38]} 16. Ne5 {[%clk 0:02:54]}  c5 {[%clk 0:02:35]} 17. dxc5 {[%clk 0:02:53]}  bxc5 {[%clk 0:02:32]} 18. Rxd8+ {[%clk 0:02:52]}  Rxd8 {[%clk 0:02:33]} 19. Rd1 {[%clk 0:02:49]}  Ke7 {[%clk 0:02:27]} 20. Ba3 {[%clk 0:02:47]}  Bd6 {[%clk 0:02:24]} 21. h3 {[%clk 0:02:43]}  g5 {[%clk 0:02:12]} 22. Nd3 {[%clk 0:02:37]}  Rc8 {[%clk 0:02:07]} 23. Qe3 {[%clk 0:02:37]}  h5 {[%clk 0:02:04]} 24. Nxc5 {[%clk 0:02:36]}  Bc6 {[%clk 0:01:50]} 25. Rxd6 {[%clk 0:02:26]}  Kxd6 {[%clk 0:01:47]} 26. Qd4+ {[%clk 0:02:26]}  Ke7 {[%clk 0:01:46]} 27. Nd7+ {[%clk 0:02:26]} 1-0


[Site "https://www.chess.com"]

[Event "Titled Tuesday Blitz January 10 Early 2023"]
[White "Kaminski, Victor"]
[Black "Ivanova, Karina"]
[WhiteFideId "1131630"]
[BlackFideId "24139750"]
[WhiteElo "2247"]
[BlackElo "2085"]
[Result "1-0"]
[Round "04"]
[TimeControl "180+2"]
[Date "2023.01.10"]
[WhiteClock "0:00:34"]
[BlackClock "0:00:34"]

1. e4 {[%clk 0:03:00]}  c6 {[%clk 0:02:56]} 2. Nf3 {[%clk 0:02:59]}  d5 {[%clk 0:02:54]} 3. d3 {[%clk 0:03:00]}  dxe4 {[%clk 0:02:53]} 4. dxe4 {[%clk 0:03:01]}  Qxd1+ {[%clk 0:02:51]} 5. Kxd1 {[%clk 0:03:02]}  Bg4 {[%clk 0:02:51]} 6. Be2 {[%clk 0:03:01]}  Nd7 {[%clk 0:02:48]} 7. Nfd2 {[%clk 0:03:00]}  Bxe2+ {[%clk 0:02:48]} 8. Kxe2 {[%clk 0:03:01]}  O-O-O {[%clk 0:02:46]} 9. a4 {[%clk 0:03:01]}  e6 {[%clk 0:02:44]} 10. Nc4 {[%clk 0:03:00]}  Ngf6 {[%clk 0:02:41]} 11. f3 {[%clk 0:02:59]}  Bc5 {[%clk 0:02:38]} 12. c3 {[%clk 0:02:58]}  Nb6 {[%clk 0:02:29]} 13. Ne5 {[%clk 0:02:53]}  Rhf8 {[%clk 0:02:28]} 14. a5 {[%clk 0:02:51]}  Nbd7 {[%clk 0:02:28]} 15. Nc4 {[%clk 0:02:42]}  a6 {[%clk 0:02:25]} 16. Nbd2 {[%clk 0:02:40]}  Ne8 {[%clk 0:02:14]} 17. Nb3 {[%clk 0:02:39]}  Nd6 {[%clk 0:02:02]} 18. Nxd6+ {[%clk 0:02:11]}  Bxd6 {[%clk 0:02:02]} 19. Be3 {[%clk 0:02:12]}  Ne5 {[%clk 0:01:52]} 20. Bb6 {[%clk 0:02:05]}  Bc7 {[%clk 0:01:52]} 21. Ra4 {[%clk 0:02:02]}  f5 {[%clk 0:01:48]} 22. Nd4 {[%clk 0:01:56]}  Rde8 {[%clk 0:01:43]} 23. Bxc7 {[%clk 0:01:51]}  Kxc7 {[%clk 0:01:43]} 24. Nb3 {[%clk 0:01:41]}  fxe4 {[%clk 0:01:41]} 25. Rxe4 {[%clk 0:01:42]}  Ng6 {[%clk 0:01:37]} 26. g3 {[%clk 0:01:36]}  Rf7 {[%clk 0:01:31]} 27. Nc5 {[%clk 0:01:32]}  Rfe7 {[%clk 0:01:30]} 28. Re1 {[%clk 0:01:29]}  e5 {[%clk 0:01:29]} 29. Kf2 {[%clk 0:01:24]}  Kd6 {[%clk 0:01:27]} 30. Rd1+ {[%clk 0:01:24]}  Kxc5 {[%clk 0:01:20]} 31. b4+ {[%clk 0:01:07]}  Kb5 {[%clk 0:01:16]} 32. Rb1 {[%clk 0:01:07]}  c5 {[%clk 0:01:10]} 33. c4+ {[%clk 0:01:07]}  Kc6 {[%clk 0:01:09]} 34. b5+ {[%clk 0:01:07]}  axb5 {[%clk 0:01:09]} 35. Rxb5 {[%clk 0:01:00]}  Rd7 {[%clk 0:01:00]} 36. Re3 {[%clk 0:00:48]}  Ra8 {[%clk 0:00:54]} 37. Rb6+ {[%clk 0:00:48]}  Kc7 {[%clk 0:00:54]} 38. Reb3 {[%clk 0:00:47]}  Ra7 {[%clk 0:00:48]} 39. Ke3 {[%clk 0:00:41]}  Rd4 {[%clk 0:00:39]} 40. h4 {[%clk 0:00:35]}  h5 {[%clk 0:00:36]} 41. Rxg6 {[%clk 0:00:34]}  Rxc4 {[%clk 0:00:36]} 42. Rxg7+ {[%clk 0:00:34]}  Kc6 {[%clk 0:00:36]} 43. Rb6+ {[%clk 0:00:33]}  Kd5 {[%clk 0:00:34]} 44. Rd7# {[%clk 0:00:34]} 1-0


[Site "https://www.chess.com"]

[Event "Titled Tuesday Blitz January 10 Early 2023"]
[White "Makhmudov, Shukhrat"]
[Black "Mitrovic, Darko R"]
[WhiteFideId "14200775"]
[BlackFideId "927023"]
[WhiteElo "2115"]
[BlackElo "2220"]
[Result "1-0"]
[Round "04"]
[TimeControl "180+2"]
[Date "2023.01.10"]
[WhiteClock "0:01:07"]
[BlackClock "0:00:01"]

1. e4 {[%clk 0:03:00]}  e6 {[%clk 0:02:50]} 2. Nf3 {[%clk 0:02:59]}  d5 {[%clk 0:02:50]} 3. e5 {[%clk 0:03:00]}  c5 {[%clk 0:02:50]} 4. b4 {[%clk 0:03:00]}  cxb4 {[%clk 0:02:50]} 5. a3 {[%clk 0:03:00]}  bxa3 {[%clk 0:02:50]} 6. d4 {[%clk 0:02:59]}  Nc6 {[%clk 0:02:49]} 7. c3 {[%clk 0:02:59]}  Bd7 {[%clk 0:02:49]} 8. Bd3 {[%clk 0:02:59]}  a6 {[%clk 0:02:47]} 9. Ng5 {[%clk 0:02:53]}  g6 {[%clk 0:02:32]} 10. Qf3 {[%clk 0:02:49]}  Nh6 {[%clk 0:02:24]} 11. h4 {[%clk 0:02:47]}  Be7 {[%clk 0:02:10]} 12. Nxe6 {[%clk 0:02:14]}  Bxe6 {[%clk 0:02:02]} 13. Bxh6 {[%clk 0:02:13]}  Bxh4 {[%clk 0:01:33]} 14. Nxa3 {[%clk 0:02:08]}  Rg8 {[%clk 0:01:02]} 15. Bd2 {[%clk 0:01:43]}  h5 {[%clk 0:00:58]} 16. Nb5 {[%clk 0:01:36]}  axb5 {[%clk 0:00:17]} 17. Rxa8 {[%clk 0:01:32]}  Qxa8 {[%clk 0:00:16]} 18. Rxh4 {[%clk 0:01:32]}  Qa1+ {[%clk 0:00:13]} 19. Qd1 {[%clk 0:01:23]}  Qxd1+ {[%clk 0:00:11]} 20. Kxd1 {[%clk 0:01:24]}  b4 {[%clk 0:00:03]} 21. cxb4 {[%clk 0:01:23]}  Ne7 {[%clk 0:00:02]} 22. Rh1 {[%clk 0:01:12]}  Bf5 {[%clk 0:00:02]} 23. Bb5+ {[%clk 0:01:11]}  Bd7 {[%clk 0:00:01]} 24. Be2 {[%clk 0:01:07]}  Nf5 {[%clk 0:00:01]} 25. Bc3 {[%clk 0:01:07]} 1-0


[Site "https://www.chess.com"]

[Event "Titled Tuesday Blitz January 10 Early 2023"]
[White "Womacka, Mathias"]
[Black "Fishchuk, Vladyslav"]
[WhiteFideId "4611390"]
[BlackFideId "34122117"]
[WhiteElo "2396"]
[BlackElo "2252"]
[Result "1-0"]
[Round "04"]
[TimeControl "180+2"]
[Date "2023.01.10"]
[WhiteClock "0:01:47"]
[BlackClock "0:01:24"]

1. e4 {[%clk 0:03:00]}  c5 {[%clk 0:02:59]} 2. Nf3 {[%clk 0:02:59]}  Nc6 {[%clk 0:02:59]} 3. d4 {[%clk 0:03:00]}  cxd4 {[%clk 0:02:59]} 4. Nxd4 {[%clk 0:03:00]}  Nf6 {[%clk 0:03:00]} 5. Nc3 {[%clk 0:03:00]}  e5 {[%clk 0:03:00]} 6. Ndb5 {[%clk 0:02:59]}  d6 {[%clk 0:02:59]} 7. Bg5 {[%clk 0:02:59]}  a6 {[%clk 0:02:58]} 8. Na3 {[%clk 0:02:59]}  b5 {[%clk 0:02:57]} 9. Nd5 {[%clk 0:02:59]}  Be7 {[%clk 0:02:57]} 10. Nxe7 {[%clk 0:02:59]}  Nxe7 {[%clk 0:02:53]} 11. Bd3 {[%clk 0:02:58]}  Bb7 {[%clk 0:02:49]} 12. Qe2 {[%clk 0:02:57]}  d5 {[%clk 0:02:41]} 13. exd5 {[%clk 0:02:57]}  Qxd5 {[%clk 0:02:41]} 14. O-O-O {[%clk 0:02:56]}  Qxa2 {[%clk 0:02:38]} 15. Qxe5 {[%clk 0:02:50]}  Qe6 {[%clk 0:02:20]} 16. Rhe1 {[%clk 0:02:44]}  b4 {[%clk 0:02:11]} 17. Nc4 {[%clk 0:02:40]}  Bd5 {[%clk 0:02:09]} 18. Bxf6 {[%clk 0:02:17]}  gxf6 {[%clk 0:01:48]} 19. Qc7 {[%clk 0:02:15]}  Bxc4 {[%clk 0:01:32]} 20. Bxc4 {[%clk 0:02:07]}  Rc8 {[%clk 0:01:24]} 21. Qb7 {[%clk 0:01:47]} 1-0


[Site "https://www.chess.com"]

[Event "Titled Tuesday Blitz January 10 Early 2023"]
[White "Pak, Yevgeniy"]
[Black "Campbell, Charles"]
[WhiteFideId "14201712"]
[BlackFideId "8500436"]
[WhiteElo "2384"]
[BlackElo "2179"]
[Result "0-1"]
[Round "04"]
[TimeControl "180+2"]
[Date "2023.01.10"]
[WhiteClock "0:00:04"]
[BlackClock "0:00:20"]

1. e4 {[%clk 0:02:47]}  c6 {[%clk 0:02:59]} 2. Nc3 {[%clk 0:02:47]}  d5 {[%clk 0:03:00]} 3. d3 {[%clk 0:02:31]}  e5 {[%clk 0:02:59]} 4. g3 {[%clk 0:02:27]}  Nf6 {[%clk 0:02:52]} 5. Bg2 {[%clk 0:02:27]}  Bg4 {[%clk 0:02:52]} 6. Nge2 {[%clk 0:02:24]}  h6 {[%clk 0:02:43]} 7. f3 {[%clk 0:02:08]}  Be6 {[%clk 0:02:41]} 8. g4 {[%clk 0:02:00]}  dxe4 {[%clk 0:02:37]} 9. dxe4 {[%clk 0:01:41]}  Qxd1+ {[%clk 0:02:34]} 10. Nxd1 {[%clk 0:01:42]}  Bc5 {[%clk 0:02:32]} 11. Nf2 {[%clk 0:01:38]}  Nbd7 {[%clk 0:02:29]} 12. Nd3 {[%clk 0:01:35]}  Bb6 {[%clk 0:02:26]} 13. b3 {[%clk 0:01:22]}  c5 {[%clk 0:01:39]} 14. c4 {[%clk 0:00:51]}  Bc7 {[%clk 0:01:16]} 15. Nc3 {[%clk 0:00:45]}  a6 {[%clk 0:01:15]} 16. Be3 {[%clk 0:00:36]}  b6 {[%clk 0:01:13]} 17. Rd1 {[%clk 0:00:22]}  Ke7 {[%clk 0:00:45]} 18. h4 {[%clk 0:00:17]}  h5 {[%clk 0:00:39]} 19. g5 {[%clk 0:00:16]}  Ne8 {[%clk 0:00:39]} 20. Nd5+ {[%clk 0:00:13]}  Bxd5 {[%clk 0:00:38]} 21. exd5 {[%clk 0:00:08]}  Nd6 {[%clk 0:00:31]} 22. f4 {[%clk 0:00:04]}  f6 {[%clk 0:00:20]} 0-1


[Site "https://www.chess.com"]

[Event "Titled Tuesday Blitz January 10 Early 2023"]
[White "Erzhanov, Arman"]
[Black "Aspire_ie"]
[WhiteFideId "4138821"]
[WhiteElo "2228"]
[BlackElo "2307"]
[Result "1-0"]
[Round "04"]
[TimeControl "180+2"]
[Date "2023.01.10"]
[WhiteClock "0:01:08"]
[BlackClock "0:00:27"]

1. e4 {[%clk 0:03:00]}  d6 {[%clk 0:02:59]} 2. d4 {[%clk 0:02:59]}  Nf6 {[%clk 0:02:59]} 3. Nc3 {[%clk 0:02:59]}  g6 {[%clk 0:02:59]} 4. h3 {[%clk 0:02:59]}  Bg7 {[%clk 0:02:59]} 5. g4 {[%clk 0:03:00]}  O-O {[%clk 0:02:52]} 6. Bg2 {[%clk 0:03:01]}  e5 {[%clk 0:02:45]} 7. Nge2 {[%clk 0:03:01]}  Nc6 {[%clk 0:02:43]} 8. O-O {[%clk 0:03:01]}  exd4 {[%clk 0:02:40]} 9. Nxd4 {[%clk 0:03:01]}  Nxd4 {[%clk 0:02:40]} 10. Qxd4 {[%clk 0:03:00]}  Nxg4 {[%clk 0:02:39]} 11. Qd1 {[%clk 0:02:48]}  Nf6 {[%clk 0:02:33]} 12. Bg5 {[%clk 0:02:47]}  h6 {[%clk 0:02:33]} 13. Bh4 {[%clk 0:02:48]}  g5 {[%clk 0:02:30]} 14. Bg3 {[%clk 0:02:49]}  Be6 {[%clk 0:02:26]} 15. f4 {[%clk 0:02:47]}  Bc4 {[%clk 0:02:16]} 16. Rf2 {[%clk 0:02:45]}  Qd7 {[%clk 0:01:54]} 17. Qd2 {[%clk 0:02:39]}  g4 {[%clk 0:01:51]} 18. h4 {[%clk 0:02:22]}  Nh5 {[%clk 0:01:49]} 19. Kh2 {[%clk 0:02:22]}  c6 {[%clk 0:01:39]} 20. Rd1 {[%clk 0:02:17]}  Rad8 {[%clk 0:01:38]} 21. b3 {[%clk 0:02:10]}  Ba6 {[%clk 0:01:35]} 22. Ne2 {[%clk 0:01:49]}  Bxe2 {[%clk 0:01:30]} 23. Qxe2 {[%clk 0:01:49]}  f5 {[%clk 0:01:30]} 24. exf5 {[%clk 0:01:38]}  Qxf5 {[%clk 0:01:31]} 25. Be4 {[%clk 0:01:38]}  Qd7 {[%clk 0:01:20]} 26. Bg6 {[%clk 0:01:27]}  Nxg3 {[%clk 0:01:17]} 27. Kxg3 {[%clk 0:01:27]}  Rf6 {[%clk 0:01:17]} 28. h5 {[%clk 0:01:27]}  d5 {[%clk 0:01:02]} 29. Qxg4 {[%clk 0:01:23]}  Qc7 {[%clk 0:00:56]} 30. Re1 {[%clk 0:01:12]}  Rdf8 {[%clk 0:00:55]} 31. Re8 {[%clk 0:01:13]}  Rxe8 {[%clk 0:00:48]} 32. Bxe8 {[%clk 0:01:14]}  Kf8 {[%clk 0:00:48]} 33. Re2 {[%clk 0:01:09]}  d4 {[%clk 0:00:31]} 34. Bg6 {[%clk 0:01:08]}  c5 {[%clk 0:00:27]} 35. Re8# {[%clk 0:01:08]} 1-0


[Site "https://www.chess.com"]

[Event "Titled Tuesday Blitz January 10 Early 2023"]
[White "Kornyukov, Alexey"]
[Black "Dinu, Dumitru-Daniel"]
[WhiteFideId "4150457"]
[BlackFideId "1208403"]
[WhiteElo "2452"]
[BlackElo "2203"]
[Result "0-1"]
[Round "04"]
[TimeControl "180+2"]
[Date "2023.01.10"]
[WhiteClock "0:00:18"]
[BlackClock "0:00:27"]

1. e4 {[%clk 0:02:57]}  c6 {[%clk 0:02:59]} 2. Nf3 {[%clk 0:02:57]}  d5 {[%clk 0:02:59]} 3. Nc3 {[%clk 0:02:57]}  dxe4 {[%clk 0:02:58]} 4. Nxe4 {[%clk 0:02:57]}  Nf6 {[%clk 0:02:59]} 5. Qe2 {[%clk 0:02:56]}  Na6 {[%clk 0:02:58]} 6. Nxf6+ {[%clk 0:02:55]}  gxf6 {[%clk 0:02:57]} 7. d4 {[%clk 0:02:55]}  Bf5 {[%clk 0:02:52]} 8. Be3 {[%clk 0:02:54]}  Nb4 {[%clk 0:02:46]} 9. Rc1 {[%clk 0:02:44]}  Nxa2 {[%clk 0:02:45]} 10. Ra1 {[%clk 0:02:38]}  Nb4 {[%clk 0:02:45]} 11. Rc1 {[%clk 0:02:32]}  Qa5 {[%clk 0:02:08]} 12. Bd2 {[%clk 0:02:09]}  Bxc2 {[%clk 0:01:41]} 13. Qc4 {[%clk 0:01:47]}  e6 {[%clk 0:01:34]} 14. Rxc2 {[%clk 0:00:34]}  Nxc2+ {[%clk 0:01:33]} 15. Qxc2 {[%clk 0:00:34]}  Bb4 {[%clk 0:01:22]} 16. Bxb4 {[%clk 0:00:28]}  Qxb4+ {[%clk 0:01:20]} 17. Qd2 {[%clk 0:00:29]}  Qxd2+ {[%clk 0:01:16]} 18. Nxd2 {[%clk 0:00:29]}  O-O-O {[%clk 0:01:15]} 19. Nf3 {[%clk 0:00:28]}  e5 {[%clk 0:01:08]} 20. dxe5 {[%clk 0:00:27]}  fxe5 {[%clk 0:01:08]} 21. Bc4 {[%clk 0:00:28]}  f6 {[%clk 0:01:08]} 22. O-O {[%clk 0:00:27]}  Kc7 {[%clk 0:01:05]} 23. Ra1 {[%clk 0:00:27]}  a6 {[%clk 0:01:05]} 24. Be6 {[%clk 0:00:26]}  Rd6 {[%clk 0:01:01]} 25. Bf5 {[%clk 0:00:25]}  Rhd8 {[%clk 0:00:57]} 26. g4 {[%clk 0:00:22]}  h6 {[%clk 0:00:56]} 27. Kg2 {[%clk 0:00:21]}  Rd1 {[%clk 0:00:49]} 28. Ra3 {[%clk 0:00:20]}  Re8 {[%clk 0:00:33]} 29. Rc3 {[%clk 0:00:20]}  e4 {[%clk 0:00:31]} 30. Nh4 {[%clk 0:00:19]}  Rd2 {[%clk 0:00:28]} 31. b3 {[%clk 0:00:18]}  e3 {[%clk 0:00:27]} 32. Kf1 {[%clk 0:00:17]}  e2+ {[%clk 0:00:26]} 33. Ke1 {[%clk 0:00:18]}  Rd1# {[%clk 0:00:27]} 0-1


[Site "https://www.chess.com"]